bitfinex-derivatives/quotes_ETHF0:USTF0_20250115
["timestamp","ask_amount","ask_price","bid_price","bid_amount"]
[1736930142077,3.68855385,3246.0,3245.9,0.30818]
[1736930142277,3.38038385,3246.0,3245.9,0.30818]
[1736930145184,3.68855385,3246.0,3245.9,0.30818]
[1736930145897,3.68855385,3246.0,3245.7,3.2078]
[1736930146081,0.30818,3245.9,3245.8,0.30819]
[1736930146382,1.4438,3246.1,3245.7,3.516]
[1736930146885,3.2813974,3246.0,3245.7,3.516]
[1736930147384,3.2813974,3246.0,3245.7,3.2078]
[1736930147385,0.30819,3245.8,3245.7,3.2078]
[1736930147775,3.7817589,3245.8,3245.7,3.2078]
[1736930148181,3.7817589,3245.8,3245.7,3.58958317]
[1736930149889,3.7817589,3245.8,3245.7,4.37961773]
[1736930150086,3.7817589,3245.8,3245.7,4.07141773]
[1736930151186,3.7817589,3245.8,3245.7,1.17181773]
[1736930151383,3.4735689,3245.8,3245.7,1.17181773]
[1736930151789,3.52066565,3245.9,3245.7,1.17181773]
[1736930151990,0.30819,3245.9,3245.8,0.38178317]
[1736930152490,0.30819,3245.9,3245.6,1.22029168]
[1736930152491,3.70876353,3245.8,3245.6,0.91208168]
[1736930152685,0.30819,3245.8,3245.7,0.69013292]
[1736930152988,3.70876353,3245.8,3245.7,0.6901333]
[1736930153892,3.70876353,3245.8,3245.7,1.17197123]
[1736930154592,3.70876353,3245.8,3245.7,1.17192563]
[1736930156092,3.70876353,3245.8,3245.7,0.79003793]
[1736930156685,3.70876353,3245.8,3245.7,0.3082]
[1736930159694,3.70876353,3245.8,3245.5,44.0078]
[1736930159695,0.30821,3245.6,3245.5,44.31602]
[1736930159896,0.30821,3245.6,3245.5,3.2078]
[1736930160097,3.86712121,3245.6,3245.5,3.51602]
[1736930160599,3.55891121,3245.6,3245.5,3.51602]
[1736930160800,3.55891121,3245.6,3245.5,3.89784181]
[1736930161098,3.62724854,3245.7,3245.5,3.89784181]
[1736930161295,0.9815,3245.6,3245.5,3.51602]
[1736930161490,4.51719128,3245.6,3245.5,0.69006797]
[1736930162095,4.51719128,3245.6,3245.5,0.69001934]
[1736930162299,4.51719128,3245.6,3245.5,0.69001739]
[1736930162797,4.51719128,3245.6,3245.5,0.30822]
[1736930162992,4.82540128,3245.6,3245.5,0.30822]
[1736930164103,4.51719128,3245.6,3245.5,0.30822]
[1736930164306,4.51719128,3245.6,3245.5,0.68991452]
[1736930166404,4.51719128,3245.6,3245.5,0.68985466]
[1736930166901,4.51719128,3245.6,3245.5,0.38163466]
[1736930167102,4.51719128,3245.6,3245.5,0.68985466]
[1736930168405,4.51719128,3245.6,3245.5,0.6898461]
[1736930169110,4.51719128,3245.6,3245.5,0.68984494]
[1736930170511,4.51719128,3245.6,3245.5,0.68984477]
[1736930171305,4.97039128,3245.6,3245.5,0.68984477]
[1736930171613,4.97039128,3245.6,3245.5,0.30822]
[1736930173411,4.97039128,3245.6,3245.5,0.68987639]
[1736930173713,4.02509128,3245.6,3245.5,0.30822]
[1736930173906,4.02509128,3245.6,3245.5,1.17336009]
[1736930175514,3.2078,3246.0,3245.5,0.86514009]
[1736930175821,10.89238881,3246.5,3246.3,0.30815]
[1736930175822,0.9464,3246.4,3246.3,0.30815]
[1736930176009,0.9464,3246.4,3246.3,1.22023168]
[1736930176320,4.25237469,3246.4,3246.3,0.30815]
[1736930179919,14.11703616,3246.8,3246.7,0.30811]
[1736930180223,6.70525895,3246.8,3246.7,1.22019168]
[1736930180722,3.49745895,3246.8,3246.7,1.22019168]
[1736930181617,3.2078,3247.4,3246.7,1.22019168]
[1736930181618,3.2078,3247.8,3246.7,2.20447038]
[1736930181817,10.90536871,3247.7,3247.6,0.30802]
[1736930182010,10.90536871,3247.7,3247.5,0.91208168]
[1736930182315,15.08471569,3247.7,3247.4,0.30804]
[1736930182518,15.08471569,3247.7,3247.5,0.30802]
[1736930182921,4.17934698,3247.7,3247.5,0.30802]
[1736930183623,0.30802,3247.6,3247.3,0.30805]
[1736930184023,3.4319663,3247.5,3247.3,0.30805]
[1736930184921,3.4319663,3247.5,3247.4,0.30804]
[1736930190527,3.7400063,3247.5,3247.3,0.30805]
[1736930190732,3.74038134,3247.6,3247.3,0.30805]
[1736930190925,3.43235134,3247.4,3247.3,1.22013168]
[1736930191323,3.43235134,3247.5,3247.4,0.30804]
[1736930191521,0.30803,3247.6,3247.4,0.30804]
[1736930191723,3.45179444,3247.5,3247.4,0.30804]
[1736930192431,3.45179444,3247.5,3247.3,0.91208168]
[1736930192731,0.30803,3247.5,3247.3,1.22013168]
[1736930192931,3.56799713,3247.6,3247.3,1.22013168]
[1736930193135,3.25996713,3247.4,3247.3,1.22013168]
[1736930193328,0.30803,3247.6,3247.3,0.91208168]
[1736930193529,3.43128139,3247.5,3247.4,0.30804]
[1736930193830,0.30803,3247.6,3247.4,0.30804]
[1736930194132,3.43128139,3247.5,3247.4,0.30804]
[1736930194727,3.73932139,3247.5,3247.3,1.22013168]
[1736930195134,0.30804,3247.5,3247.3,1.22013168]
[1736930195334,3.53015731,3247.4,3247.3,1.22013168]
[1736930195733,3.53015731,3247.4,3247.1,3.2078]
[1736930195932,2.63843168,3247.3,3247.1,3.51586]
[1736930196133,2.63843168,3247.3,3246.4,0.9202]
[1736930196134,0.30806,3247.2,3247.0,1.22015168]
[1736930196332,3.53015731,3247.2,3247.0,1.22015168]
[1736930197136,3.53015731,3247.2,3247.0,0.30807]
[1736930197435,0.30807,3247.1,3246.9,0.30808]
[1736930197630,3.53015731,3247.2,3246.8,0.91208168]
[1736930197840,1.72636,3247.3,3247.0,0.91208168]
[1736930198032,3.30971327,3247.1,3247.0,1.22016168]
[1736930198236,3.30971327,3247.1,3247.0,0.91208168]
[1736930198536,1.4183,3247.3,3246.8,0.91208168]
[1736930198730,3.50291753,3247.1,3246.8,0.91208168]
[1736930199039,0.30811,3246.7,3246.6,3.2078]
[1736930199335,3.49364014,3246.7,3246.6,3.51592]
[1736930199738,1.4295,3246.7,3246.6,3.51592]
[1736930200235,5.23125014,3246.7,3246.6,3.2078]
[1736930201034,0.30813,3246.5,3246.3,0.30814]
[1736930201441,3.49623006,3246.4,3246.3,0.30814]
[1736930201944,3.80437006,3246.4,3246.2,0.30815]
[1736930202234,3.80437006,3246.4,3246.1,40.8]
[1736930202235,0.30814,3246.4,3246.1,40.8]
[1736930202439,0.30813,3246.5,3246.3,0.30814]
[1736930202641,0.30813,3246.5,3246.1,40.8]
[1736930202840,3.20571563,3246.4,3246.1,40.8]
[1736930203045,3.20571563,3246.4,3246.3,0.30814]
[1736930203739,3.2078,3246.6,3246.3,0.30814]
[1736930203944,3.83969001,3246.5,3246.3,0.30814]
[1736930204143,0.30813,3246.5,3246.3,0.30814]
[1736930204441,3.26748943,3246.4,3246.3,0.30814]
[1736930204638,3.57562943,3246.4,3246.1,40.8]
[1736930204829,3.57562943,3246.4,3246.2,0.30815]
[1736930205034,0.30814,3246.4,3246.2,0.30815]
[1736930205240,0.30816,3246.2,3246.0,0.79517617]
[1736930205843,3.27522946,3246.1,3246.0,4.00297617]
[1736930206034,3.2078,3246.6,3246.0,3.69480617]
[1736930206239,3.77252946,3246.5,3246.1,40.8]
[1736930206442,0.4973,3246.5,3246.1,40.8]
[1736930206944,0.4973,3246.5,3246.4,0.30814]
[1736930207634,0.4973,3246.5,3246.4,41.10814]
[1736930210946,3.2078,3246.6,3246.2,1.9261226]
[1736930211144,3.2078,3246.6,3246.5,0.30813]
[1736930211345,3.2078,3247.0,3246.5,0.30813]
[1736930211547,3.2078,3247.0,3246.6,0.4614]
[1736930211845,6.60175644,3247.0,3246.6,0.4614]
[1736930212349,0.30811,3246.7,3246.6,0.4614]
[1736930212536,0.30815,3246.3,3246.1,0.30816]
[1736930212846,3.76328088,3246.2,3246.1,0.30816]
[1736930213247,0.4969,3246.2,3246.1,0.30816]
[1736930220652,0.4969,3246.2,3246.0,0.30817]
[1736930220653,4.14501348,3246.2,3246.0,0.30817]
[1736930220850,0.9345,3246.1,3246.0,0.30817]
[1736930221652,0.4764,3246.1,3246.0,0.30817]
[1736930227455,0.4764,3246.1,3246.0,0.68939176]
[1736930227656,0.4764,3246.1,3246.0,0.30817]
[1736930227960,0.4764,3246.1,3246.0,0.68939244]
[1736930228154,0.4764,3246.1,3246.0,0.68959458]
[1736930230263,0.4764,3246.1,3246.0,1.17138529]
[1736930230858,0.4764,3246.1,3246.0,0.68959458]
[1736930231452,0.4764,3246.1,3246.0,0.30817]
[1736930232258,0.4764,3246.1,3245.8,3.51599]
[1736930232259,0.30818,3245.9,3245.8,3.51599]
[1736930232656,3.5525803,3245.9,3245.8,3.2078]
[1736930232861,4.3289603,3245.9,3245.8,3.2078]
[1736930233061,4.0207803,3245.9,3245.8,3.51599]
[1736930233463,4.3289603,3245.9,3245.8,3.51599]
[1736930233662,4.0207803,3245.9,3245.8,3.51599]
[1736930233963,3.5525803,3245.9,3245.8,5.82437651]
[1736930234260,3.5525803,3245.9,3245.8,6.30614908]
[1736930234460,0.4764,3246.1,3246.0,0.30817]
[1736930234665,0.4764,3246.1,3246.0,0.68976745]
[1736930234867,0.4764,3246.1,3246.0,1.17154002]
[1736930235159,0.4764,3246.1,3246.0,41.97154002]
[1736930235566,0.4764,3246.1,3246.0,41.97146035]
[1736930235962,0.4764,3246.1,3246.0,41.58994257]
[1736930236166,0.4682,3246.4,3246.3,0.30815]
[1736930236569,3.73377381,3246.4,3246.3,0.30815]
[1736930239478,3.73377381,3246.4,3246.3,0.68943736]
[1736930239672,3.73377381,3246.4,3246.3,0.30815]
[1736930240177,3.73377381,3246.4,3246.3,0.68950652]
[1736930240781,3.73377381,3246.4,3246.3,0.30815]
[1736930242076,3.73377381,3246.4,3245.8,5.13458906]
[1736930242277,0.30816,3246.2,3246.0,0.30817]
[1736930242470,0.4803,3246.1,3246.0,0.30817]
[1736930242671,4.36877667,3246.1,3246.0,0.68974947]
[1736930243276,4.67693667,3246.1,3246.0,0.68974947]
[1736930243481,4.36877667,3246.1,3246.0,0.6897648]
[1736930243783,4.67693667,3246.1,3245.7,0.3082]
[1736930243976,4.67693667,3246.1,3245.6,0.30821]
[1736930243977,4.36877667,3246.1,3245.6,0.30821]
[1736930244283,0.3082,3245.7,3245.5,0.30821]
[1736930244581,0.9461,3245.6,3245.5,0.30821]
[1736930244880,4.72396358,3245.6,3245.5,0.30821]
[1736930245884,4.72396358,3245.6,3245.4,3.2078]
[1736930246089,4.72396358,3245.6,3243.8,16.79139195]
[1736930246090,0.11852217,3245.3,3243.8,16.79139195]
[1736930246376,0.30839,3243.7,3243.6,3.20049575]
[1736930246577,0.30847,3242.9,3242.8,23.98770278]
[1736930246774,2.23525906,3242.9,3242.8,23.98770278]
[1736930246975,5.55872264,3242.9,3242.8,25.22130278]
[1736930247177,3.32346358,3242.9,3242.8,28.51784333]
[1736930247480,1.92678906,3242.9,3242.8,28.51784333]
[1736930247680,1.92678906,3242.9,3242.8,4.53014055]
[1736930247878,5.31170819,3242.9,3242.8,4.53014055]
[1736930248387,3.38491913,3242.9,3242.8,4.53014055]
[1736930248777,1.92678906,3243.1,3242.8,4.53014055]
[1736930248778,3.41832675,3243.0,3242.8,4.53014055]
[1736930249075,7.23882295,3242.9,3242.8,1.2336]
[1736930249476,10.6571497,3242.9,3242.8,4.53014055]
[1736930249985,10.6571497,3242.9,3242.8,45.33014055]
[1736930250276,16.67926882,3242.9,3242.6,3.2078]
[1736930250683,10.2118527,3242.9,3242.6,3.2078]
[1736930251086,9.9033827,3242.9,3242.4,0.30851]
[1736930251281,9.9033827,3242.9,3242.8,40.8]
[1736930251884,3.72679675,3242.9,3242.8,40.8]
[1736930253084,10.69158689,3242.9,3242.8,40.8]
[1736930254083,4.1897733,3242.9,3242.8,40.8]
[1736930254384,0.30848,3242.8,3242.3,0.30852]
[1736930254582,3.2078,3242.7,3242.3,0.30852]
[1736930254980,2.23526906,3242.8,3242.3,0.30852]
[1736930255182,3.2078,3242.7,3242.3,0.30852]
[1736930255680,3.2078,3242.7,3242.6,40.8]
[1736930255882,3.97926655,3242.7,3242.6,40.8]
[1736930256784,6.96004891,3242.7,3242.6,40.8]
[1736930257284,7.26853891,3242.7,3242.6,40.8]
[1736930257474,6.96004891,3242.7,3242.6,40.8]
[1736930258278,7.26853891,3242.7,3242.6,40.8]
[1736930258672,10.8641745,3242.7,3242.3,0.30852]
[1736930259784,10.8641745,3242.7,3242.6,40.8]
[1736930261084,6.49707236,3242.7,3242.6,40.8]
[1736930261386,6.49707236,3242.7,3242.6,41.1085]
[1736930261583,4.80040517,3243.1,3242.6,47.084]
[1736930261885,4.63308349,3243.1,3243.0,2.23524906]
[1736930262386,2.39380112,3243.4,3243.3,0.30843]
[1736930263578,3.2078,3243.5,3243.4,0.30842]
[1736930266884,3.2078,3243.5,3243.0,1.92678906]
[1736930267085,3.2078,3243.5,3243.1,1.284]
[1736930267383,3.2078,3243.5,3243.4,0.30842]
[1736930267787,2.70218112,3243.9,3243.1,1.284]
[1736930267984,3.2078,3243.8,3243.6,0.3084]
[1736930268185,9.09763455,3243.8,3243.1,1.284]
[1736930268386,5.60160112,3243.8,3243.7,0.30839]
[1736930269389,3.67064464,3243.8,3243.7,0.30839]
[1736930271390,3.67064464,3243.8,3243.7,41.10839]
[1736930271591,3.2078,3243.8,3243.7,41.10839]
[1736930273590,6.02211912,3244.4,3243.7,41.10839]
[1736930273591,9.22991912,3244.4,3244.3,0.30834]
[1736930275589,0.46274497,3244.4,3244.3,0.30834]
[1736930275782,3.67054497,3244.4,3244.3,0.30834]
[1736930276794,0.46274497,3244.4,3244.3,0.30834]
[1736930276996,5.60509266,3244.4,3244.3,0.30834]
[1736930278494,2.39729266,3244.4,3244.3,0.30834]
[1736930278697,1.26682681,3244.4,3244.3,5.30834]
[1736930278894,0.6421081,3244.4,3244.3,6.71024]
[1736930279297,0.56366423,3244.4,3244.3,47.58924]
[1736930280092,0.4671,3245.1,3245.0,0.30827]
[1736930280686,3.2078,3245.2,3245.1,0.30826]
[1736930280892,0.9325,3245.5,3245.4,0.30823]
[1736930283398,1.39508334,3245.5,3245.4,0.30823]
[1736930284406,1.39508334,3245.5,3244.8,0.77072]
[1736930284801,1.39508334,3245.5,3245.4,0.30823]
[1736930285303,13.30171578,3245.5,3244.8,0.77072]
[1736930285504,13.30171578,3245.5,3244.9,40.8]
[1736930286009,3.51605,3245.2,3244.9,0.30827]
[1736930286307,0.30826,3245.1,3244.8,0.30828]
[1736930286497,3.8230927,3245.1,3244.8,0.30828]
[1736930286693,3.5148327,3245.1,3244.9,0.30828]
[1736930287608,12.36921578,3245.0,3244.9,0.30828]
[1736930288303,16.12713433,3245.0,3244.7,0.3083]
[1736930288502,3.2078,3244.8,3244.7,0.3083]
[1736930289003,3.6878,3244.8,3244.7,0.3083]
[1736930290710,16.35556727,3244.8,3244.6,0.30831]
[1736930290910,0.4928,3244.7,3244.5,0.30831]
[1736930291109,0.30832,3244.5,3244.2,0.30834]
[1736930291610,3.44235239,3244.4,3244.3,40.8]
[1736930292209,6.95848239,3244.4,3244.3,40.8]
[1736930292405,7.42106573,3244.4,3244.3,40.8]
[1736930292606,3.67038334,3244.4,3244.3,40.8]
[1736930292809,7.04261399,3244.4,3244.3,40.8]
[1736930293311,9.27773305,3244.4,3244.3,40.8]
[1736930293512,8.96940305,3244.4,3243.4,5.13458906]
[1736930293704,0.30835,3244.2,3243.9,0.30837]
[1736930294012,0.4652,3244.1,3244.0,40.8]
[1736930294313,3.74663678,3244.1,3243.9,0.30837]
[1736930294801,3.74663678,3244.1,3243.9,40.8]
[1736930295003,5.27953204,3244.1,3244.0,0.30836]
[1736930296407,0.9279541,3244.1,3244.0,0.30836]
[1736930296907,0.93898315,3244.1,3244.0,0.30836]
[1736930299608,6.55027117,3244.1,3243.8,0.30838]
[1736930299816,3.6752,3244.0,3243.5,1.267]
[1736930300013,3.6752,3244.0,3243.8,0.29735095]
[1736930300701,3.6752,3244.0,3243.6,40.8]
[1736930300702,8.56460747,3243.9,3243.6,40.8]
[1736930300905,8.56460747,3243.9,3243.8,0.30838]
[1736930301311,8.56460747,3243.9,3243.7,0.30839]
[1736930301511,8.56460747,3243.9,3243.8,0.30838]
[1736930302017,3.75027543,3243.9,3243.6,40.8]
[1736930302214,3.75027543,3243.9,3243.7,0.30839]
[1736930302517,3.75027543,3243.9,3243.8,0.30838]
[1736930303019,3.75027543,3243.9,3243.6,40.8]
[1736930303218,3.75027543,3243.9,3243.7,0.30839]
[1736930303515,15.37382924,3243.9,3243.8,0.30838]
[1736930303717,3.28752133,3243.9,3243.8,0.30838]
[1736930304312,3.28752133,3243.9,3243.7,0.30839]
[1736930305014,3.28752133,3243.9,3243.6,40.8]
[1736930305216,3.28752133,3243.9,3243.8,0.30838]
[1736930307114,9.36722333,3243.9,3243.8,0.30838]
[1736930307919,9.36722333,3243.9,3243.6,40.8]
[1736930308114,9.67560333,3243.9,3243.7,0.30839]
[1736930308823,9.36722333,3243.9,3243.8,0.30838]
[1736930309520,3.28752133,3243.9,3243.8,0.30838]
[1736930310619,3.28752133,3243.9,3243.6,40.8]
[1736930310925,9.56314486,3243.9,3243.7,0.30839]
[1736930311624,0.30839,3243.8,3243.3,3.2078]
[1736930311825,0.4922,3243.7,3243.6,0.3084]
[1736930312027,4.00481607,3243.7,3243.6,41.1084]
[1736930312324,4.00481607,3243.7,3243.4,0.30842]
[1736930312514,4.00481607,3243.7,3243.5,0.3084]
[1736930312715,4.00481607,3243.7,3243.5,41.1084]
[1736930313425,5.96724353,3243.6,3243.5,41.1084]
[1736930313924,9.47835657,3243.6,3243.5,41.1084]
[1736930314624,9.47835657,3243.6,3243.4,0.30842]
[1736930314818,0.4588,3243.5,3243.3,3.51623]
[1736930315022,0.4588,3243.5,3243.3,40.8]
[1736930315222,3.27209657,3243.4,3243.3,41.10843]
[1736930316526,12.01016264,3243.4,3243.3,41.10843]
[1736930318521,15.35597209,3243.4,3242.9,3.5888]
[1736930318725,15.82927209,3243.4,3242.9,3.5888]
[1736930319029,15.82927209,3243.4,3243.0,40.8]
[1736930319030,3.51625,3243.2,3243.0,40.8]
[1736930319230,9.55916911,3243.2,3243.0,41.10846]
[1736930319528,3.91933007,3243.1,3243.0,40.8]
[1736930320124,3.91933007,3243.1,3243.0,41.10846]
[1736930321026,9.8865736,3243.1,3243.0,0.30846]
[1736930321424,5.96724353,3243.1,3243.0,0.30846]
[1736930322019,5.96724353,3243.1,3243.0,41.10846]
[1736930323023,0.94520999,3243.1,3243.0,41.10846]
[1736930324130,0.4824,3243.1,3243.0,41.10846]
[1736930325232,6.26526535,3243.1,3243.0,41.10846]
[1736930326636,0.94520999,3243.1,3243.0,41.10846]
[1736930328036,0.4824,3243.1,3243.0,41.10846]
[1736930329331,6.26425188,3243.1,3243.0,41.10846]
[1736930329537,6.26425188,3243.1,3243.0,40.8]
[1736930330033,6.26425188,3243.1,3242.9,0.381]
[1736930330537,6.26425188,3243.1,3242.9,41.181]
[1736930331535,11.81890195,3243.0,3242.9,41.181]
[1736930333142,5.78185188,3243.0,3242.9,43.10778906]
[1736930333336,5.03065188,3243.0,3242.9,46.31558906]
[1736930334536,4.83549683,3243.2,3242.9,44.3888]
[1736930334936,0.4873,3243.1,3242.9,44.3888]
[1736930335138,0.9458,3243.1,3242.9,44.3888]
[1736930335535,0.46280999,3243.0,3242.9,44.3888]
[1736930336336,0.46280999,3243.0,3242.9,44.69727]
[1736930337745,0.46280999,3243.0,3242.9,41.48947]
[1736930338447,0.45986405,3243.0,3242.9,41.48947]
[1736930343248,0.45986405,3243.0,3242.9,0.68947]
[1736930343549,1.41736405,3243.0,3242.9,0.68947]
[1736930343842,6.59260727,3243.0,3242.9,0.68947]
[1736930346547,5.63510727,3243.0,3242.9,0.68947]
[1736930347147,5.63510727,3243.0,3242.9,41.48947]
[1736930347550,5.63510727,3243.0,3242.9,46.62405906]
[1736930349656,5.63510727,3243.0,3242.9,46.87623972]
[1736930353346,5.63510727,3243.0,3242.9,44.94945066]
[1736930354750,5.63510727,3243.0,3242.9,41.74165066]
[1736930355256,5.63510727,3243.0,3242.9,43.66843972]
[1736930355651,5.64827469,3243.0,3242.9,43.66843972]
[1736930356853,5.64982831,3243.0,3242.9,43.66843972]
[1736930358455,11.710267,3243.0,3242.9,43.66843972]
[1736930358755,10.453507,3243.0,3242.9,48.66843972]
[1736930359156,10.45506063,3243.0,3242.9,48.66843972]
[1736930359855,10.45506063,3243.0,3242.9,51.87623972]
[1736930360053,10.45506063,3243.0,3242.9,46.87623972]
[1736930360354,10.45661426,3243.0,3242.9,46.87623972]
[1736930361252,10.45816789,3243.0,3242.9,46.87623972]
[1736930362557,10.45972153,3243.0,3242.9,46.87623972]
[1736930369658,10.45972153,3243.0,3242.9,46.62405906]
[1736930370064,10.45972153,3243.0,3242.9,44.69727]
[1736930371356,4.39928284,3243.0,3242.9,44.69727]
[1736930372655,0.02093557,3243.0,3242.9,44.69727]
[1736930373860,4.39928284,3243.0,3242.9,44.69727]
[1736930374964,0.02093557,3243.0,3242.9,44.69727]
[1736930375361,0.02093557,3243.0,3242.9,41.48947]
[1736930375861,4.39928284,3243.0,3242.9,41.48947]
[1736930378561,12.56874905,3243.0,3242.9,41.48947]
[1736930381273,12.56874905,3243.0,3242.9,41.181]
[1736930381473,12.56874905,3243.0,3242.9,41.48947]
[1736930382371,12.56874905,3243.0,3242.9,41.181]
[1736930382873,12.56874905,3243.0,3242.9,0.381]
[1736930382874,23.34939828,3243.0,3242.9,0.381]
[1736930384474,23.34939828,3243.0,3242.9,0.68947]
[1736930386469,23.34939828,3243.0,3242.9,0.381]
[1736930387472,23.34939828,3243.0,3242.9,0.68947]
[1736930389773,16.10989897,3243.0,3242.9,0.68947]
[1736930390080,16.10989897,3243.0,3242.9,0.381]
[1736930390278,16.10989897,3243.0,3242.9,0.68947]
[1736930390778,16.10989897,3243.0,3242.9,0.381]
[1736930391077,3.56208549,3243.0,3242.8,0.26840722]
[1736930391379,0.6114,3242.9,3242.8,0.26840722]
[1736930391879,1.5251572,3242.9,3242.6,0.30849]
[1736930392177,0.02093557,3242.8,3242.6,0.30849]
[1736930392970,0.02093557,3242.8,3242.7,0.30849]
[1736930393170,7.27574996,3242.8,3242.7,0.28755443]
[1736930394081,7.27574996,3242.8,3242.6,0.30849]
[1736930394778,22.16512764,3242.8,3242.5,3.5163]
[1736930395179,3.68693184,3242.7,3242.5,3.2078]
[1736930395672,1.5560572,3242.6,3242.5,3.2078]
[1736930396069,8.4183083,3242.6,3242.2,0.30853]
[1736930396274,0.6057,3242.5,3242.2,0.30854]
[1736930396476,0.6057,3242.5,3241.9,3.2078]
[1736930396477,0.30853,3242.3,3241.9,3.2078]
[1736930396771,0.9137572,3242.0,3241.9,3.51636]
[1736930396977,4.8734983,3242.2,3241.9,3.51636]
[1736930397178,3.52332574,3242.0,3241.9,3.51636]
[1736930397378,4.16662574,3242.1,3241.9,3.51636]
[1736930397779,0.6433,3242.1,3241.9,3.2078]
[1736930397981,3.26715682,3242.0,3241.9,3.2078]
[1736930398177,3.26715682,3242.0,3241.9,3.51636]
[1736930398486,8.80863717,3242.0,3241.9,3.2078]
[1736930398876,8.80863717,3242.0,3241.9,3.51636]
[1736930399386,8.80863717,3242.0,3241.9,3.2078]
[1736930399586,8.80863717,3242.0,3241.9,3.51636]
[1736930399885,8.80863717,3242.0,3241.6,40.8]
[1736930400281,8.80863717,3242.0,3241.9,0.30856]
[1736930403795,8.80863717,3242.0,3241.6,0.6244]
[1736930404695,8.80863717,3242.0,3241.9,0.30856]
[1736930406281,8.80863717,3242.0,3241.6,1.2396]
[1736930406487,8.80863717,3242.0,3241.5,40.8]
[1736930406693,0.5754,3241.9,3241.5,41.1086]
[1736930406992,0.5754,3241.9,3241.4,3.2078]
[1736930406993,1.93132745,3241.6,3241.4,3.2078]
[1736930407190,0.5814,3241.5,3241.4,0.30861]
[1736930407390,3.88631174,3241.5,3241.1,40.8]
[1736930407585,0.5911,3241.4,3241.1,41.10864]
[1736930407887,1.1665,3241.4,3241.1,40.8]
[1736930408094,3.30491174,3241.3,3241.2,0.30862]
[1736930408386,3.30491174,3241.3,3241.1,40.8]
[1736930408984,3.30491174,3241.3,3240.7,1.2065]
[1736930409188,3.61353174,3241.3,3240.9,0.30866]
[1736930409393,3.61353174,3241.3,3241.0,40.8]
[1736930409693,5.54148035,3241.2,3241.0,40.8]
[1736930410387,5.54148035,3241.2,3241.0,41.10865]
[1736930410888,5.54148035,3241.2,3241.0,40.8]
[1736930411092,4.68292,3241.4,3241.1,0.30864]
[1736930411599,3.80771144,3241.3,3241.0,41.10865]
[1736930412192,6.03960344,3241.2,3241.0,0.30865]
[1736930412595,3.3661892,3241.1,3241.0,0.30865]
[1736930412790,3.3661892,3241.1,3240.9,0.30865]
[1736930413596,3.3661892,3241.1,3241.0,0.30865]
[1736930413597,8.88840878,3241.1,3241.0,0.30865]
[1736930413894,8.88840878,3241.1,3240.7,41.4353]
[1736930414095,8.88840878,3241.1,3241.0,0.30865]
[1736930414788,8.65740683,3241.1,3241.0,0.30865]
[1736930415995,8.19418917,3241.1,3241.0,0.30865]
[1736930416998,8.65740683,3241.1,3241.0,0.30865]
[1736930417599,8.65740683,3241.1,3240.7,41.4353]
[1736930418307,8.65740683,3241.1,3240.8,0.30866]
[1736930418594,8.65740683,3241.1,3240.6,3.51648]
[1736930418595,0.30866,3240.9,3240.6,3.51648]
[1736930418799,0.6944,3240.8,3240.6,3.51648]
[1736930418995,1.4079,3240.8,3240.7,0.30868]
[1736930419396,1.4079,3240.8,3240.6,3.51648]
[1736930419599,1.4079,3240.8,3240.7,0.30868]
[1736930421302,5.48959638,3240.8,3240.6,3.17711801]
[1736930421606,5.48959638,3240.8,3240.7,0.30868]
[1736930421904,5.48959638,3240.8,3240.6,3.17711801]
[1736930422403,5.48959638,3240.8,3240.7,0.30868]
[1736930424401,8.8120819,3240.8,3240.7,0.30868]
[1736930425304,9.72706624,3240.8,3240.7,0.30868]
[1736930425509,9.72706624,3240.8,3240.6,3.48579801]
[1736930425701,0.30868,3240.7,3240.2,3.2078]
[1736930425900,0.91498434,3240.5,3240.4,0.30871]
[1736930427505,4.29815212,3240.5,3240.4,0.30871]
[1736930427705,8.3798485,3240.5,3240.4,0.30871]
[1736930428108,16.5876485,3240.5,3239.2,0.77204]
[1736930428405,0.91498434,3239.5,3239.4,0.3088]
[1736930429202,0.91498434,3239.5,3239.1,2.24108434]
[1736930429408,0.6344,3239.6,3239.4,0.3088]
[1736930429606,4.25286672,3239.6,3239.4,0.3088]
[1736930429808,3.47713167,3239.5,3239.1,1.3261]
[1736930430010,3.47713167,3239.5,3239.3,0.30881]
[1736930431104,7.09559839,3239.5,3239.3,0.30881]
[1736930431302,7.77969839,3239.5,3239.3,0.30881]
[1736930431808,7.77969839,3239.5,3239.2,0.30882]
[1736930432305,7.77969839,3239.5,3239.1,1.3261]
[1736930432610,7.77969839,3239.5,3238.7,41.04254254]
[1736930432611,3.2078,3239.3,3238.9,0.30885]
[1736930432811,3.2078,3239.3,3239.0,0.30884]
[1736930433012,3.48192825,3239.2,3239.0,0.30884]
[1736930433312,3.48192825,3239.2,3238.8,0.6462]
[1736930433512,4.17892825,3239.2,3238.8,0.6462]
[1736930433708,4.48775825,3239.2,3238.8,0.6462]
[1736930433910,4.48775825,3239.2,3238.8,0.95506]
[1736930434211,0.30884,3239.1,3238.8,0.6462]
[1736930434410,0.6542,3239.0,3238.6,6.81910111]
[1736930434602,4.66549016,3239.0,3238.6,6.81910111]
[1736930434805,4.66549016,3239.0,3238.7,0.30887]
[1736930435604,4.66549016,3239.0,3238.6,5.77020111]
[1736930435809,3.2078,3238.7,3238.0,0.002]
[1736930436011,3.2078,3238.1,3238.0,0.002]
[1736930439116,3.2078,3238.1,3238.0,40.802]
[1736930440414,0.30901,3237.3,3236.7,0.30905]
[1736930440613,8.2078,3238.1,3236.3,3.44920931]
[1736930440614,3.31611405,3237.2,3236.3,3.44920931]
[1736930440813,3.2078,3237.1,3236.4,0.6646]
[1736930441021,3.2078,3237.1,3236.7,0.30905]
[1736930441213,3.2078,3237.1,3236.8,1.00615]
[1736930441719,3.2078,3237.1,3236.8,0.6971]
[1736930442321,3.2078,3237.1,3236.8,1.00615]
[1736930442924,3.2078,3237.1,3236.8,0.6971]
[1736930443420,3.2078,3237.1,3236.8,1.00615]
[1736930444120,3.2078,3237.1,3236.9,0.30904]
[1736930444320,3.2078,3237.1,3236.8,0.6971]
[1736930444516,3.2078,3237.1,3236.8,1.00614]
[1736930445015,3.2078,3237.1,3236.9,0.30904]